bitfinex/quotes_ETHUSD_20251126
["timestamp","ask_amount","ask_price","bid_price","bid_amount"]
[1764161373186,0.4988,2905.4,2905.0,0.001]
[1764161373386,0.3212204,2905.3,2905.0,0.001]
[1764161373588,0.3212204,2905.2,2905.0,0.001]
[1764161373886,0.4988,2905.4,2905.0,0.001]
[1764161374063,0.32122043,2905.3,2905.0,0.0386]
[1764161374267,0.002,2905.6,2905.0,0.0386]
[1764161374588,0.002,2905.6,2905.2,0.0376]
[1764161375288,0.32144614,2905.5,2905.2,0.0376]
[1764161375587,0.002,2905.6,2905.2,0.0376]
[1764161375774,0.32147655,2905.5,2905.2,0.0376]
[1764161376089,0.5016,2905.6,2905.2,0.0376]
[1764161376291,0.3215103,2905.5,2905.2,0.0376]
[1764161376492,0.5016,2905.6,2905.2,0.0376]
[1764161376689,0.32153942,2905.5,2905.2,0.0376]
[1764161376894,0.5016,2905.6,2905.2,0.0376]
[1764161377070,0.32153942,2905.5,2905.2,0.0376]
[1764161377271,0.5016,2905.6,2905.2,0.0376]
[1764161377601,0.32159772,2905.5,2905.2,0.0376]
[1764161377759,0.5016,2905.6,2905.2,0.0376]
[1764161377960,0.32159772,2905.5,2905.2,0.0376]
[1764161378302,0.5016,2905.6,2905.2,0.0376]
[1764161378503,0.32166466,2905.5,2905.2,0.0376]
[1764161378673,0.5016,2905.6,2905.2,0.0376]
[1764161378873,0.5016,2905.6,2905.0,0.001]
[1764161378874,0.4956,2905.3,2905.0,0.001]
[1764161379081,0.5016,2905.6,2905.0,0.001]
[1764161379281,0.82126474,2905.5,2905.0,0.001]
[1764161379482,0.4996,2905.5,2905.0,0.001]
[1764161379796,0.4996,2905.4,2905.0,0.001]
[1764161381403,0.002,2905.6,2905.0,0.001]
[1764161381585,0.32196478,2905.5,2905.3,0.0376]
[1764161381782,0.32196478,2905.4,2905.3,0.0376]
[1764161382590,0.32196478,2905.4,2905.0,0.0386]
[1764161382802,0.002,2905.6,2905.0,0.0386]
[1764161383103,0.32212658,2905.5,2905.0,0.0386]
[1764161383312,0.32212658,2905.4,2905.0,0.001]
[1764161383478,0.002,2905.6,2905.0,0.001]
[1764161383676,0.32213956,2905.5,2905.0,0.001]
[1764161383985,0.32213956,2905.4,2905.0,0.001]
[1764161384186,0.002,2905.6,2905.0,0.001]
[1764161384379,0.32215963,2905.5,2905.0,0.001]
[1764161384578,0.32215963,2905.4,2905.0,0.001]
[1764161384779,0.002,2905.6,2905.0,0.001]
[1764161385078,0.32215963,2905.5,2905.0,0.001]
[1764161385279,0.32215963,2905.4,2905.0,0.001]
[1764161385618,0.4626,2905.5,2905.0,0.001]
[1764161385784,0.32218062,2905.4,2905.0,0.001]
[1764161385985,0.4626,2905.5,2905.0,0.001]
[1764161386178,0.32218064,2905.4,2905.0,0.001]
[1764161386380,0.4626,2905.5,2905.0,0.001]
[1764161386602,0.32218966,2905.4,2905.0,0.001]
[1764161386809,0.4626,2905.5,2905.0,0.001]
[1764161387008,0.32218967,2905.4,2905.0,0.001]
[1764161387210,0.4626,2905.5,2905.0,0.001]
[1764161387409,0.32219896,2905.4,2905.0,0.001]
[1764161387708,0.4626,2905.5,2905.0,0.001]
[1764161388011,0.32219896,2905.4,2905.0,0.001]
[1764161388214,0.4626,2905.5,2905.0,0.001]
[1764161388412,0.32221985,2905.4,2905.0,0.001]
[1764161388601,0.4626,2905.5,2905.0,0.001]
[1764161388801,0.32222278,2905.4,2905.0,0.001]
[1764161389003,0.4626,2905.5,2905.0,0.001]
[1764161389227,0.32221986,2905.4,2905.0,0.001]
[1764161389383,0.002,2905.6,2905.4,0.0376]
[1764161389580,0.002,2905.6,2905.5,0.0376]
[1764161390507,0.002,2905.6,2905.5,0.0752]
[1764161391082,0.002,2905.6,2905.5,0.0376]
[1764161391387,0.002,2905.6,2905.5,0.0752]
[1764161394810,0.002,2905.6,2905.5,7.20909859]
[1764161395019,0.002,2905.6,2905.5,0.90054411]
[1764161395200,0.002,2905.6,2905.5,0.80079411]
[1764161395201,0.0012,2905.6,2905.5,0.80079411]
[1764161397288,0.0012,2905.6,2905.5,1.30604811]
[1764161398201,0.0012,2905.6,2905.5,0.80079411]
[1764161400007,0.0012,2905.6,2905.5,0.93868544]
[1764161400557,0.0012,2905.6,2905.5,0.80079411]
[1764161401402,0.0012,2905.6,2905.5,1.30604811]
[1764161401634,0.002,2905.8,2905.5,1.30604811]
[1764161401837,0.002,2905.8,2905.7,7.26742058]
[1764161402344,0.002,2905.8,2905.7,7.30502058]
[1764161404937,0.002,2905.8,2905.7,7.44289717]
[1764161408910,0.002,2905.8,2905.7,7.84840117]
[1764161409111,0.002,2905.8,2905.7,20.16710417]
[1764161409623,0.002,2906.1,2906.0,1.23084811]
[1764161409828,0.002,2906.1,2906.0,10.09442558]
[1764161410024,0.002,2906.1,2906.0,10.13202558]
[1764161410752,0.002,2906.1,2906.0,12.72547758]
[1764161410958,0.002,2906.1,2906.0,7.71052458]
[1764161412226,0.002,2906.1,2906.0,7.84836079]
[1764161412651,0.002,2906.4,2906.3,0.505254]
[1764161412844,0.002,2906.4,2906.3,7.67292458]
[1764161413044,0.002,2906.4,2906.3,7.71052458]
[1764161414252,0.002,2906.4,2906.3,7.57317458]
[1764161414453,0.002,2906.4,2906.3,7.71052458]
[1764161415462,0.002,2906.4,2906.3,7.84836079]
[1764161416490,0.002,2906.4,2906.3,1.00078032]
[1764161416783,0.002,2906.4,2906.3,0.86294411]
[1764161416980,0.002,2906.4,2906.3,7.26742058]
[1764161417276,0.002,2906.4,2906.3,7.30502058]
[1764161417771,0.002,2906.4,2906.3,7.26742058]
[1764161418081,0.002,2906.4,2906.3,7.16767058]
[1764161418479,0.002,2906.4,2906.3,6.44207647]
[1764161418785,0.002,2906.4,2906.3,7.16767058]
[1764161419153,0.002,2906.4,2906.3,7.26742058]
[1764161419979,0.0012,2906.4,2906.3,7.26742058]
[1764161422357,0.0012,2906.4,2906.3,0.86294411]
[1764161422980,0.0012,2906.4,2906.3,0.76319411]
[1764161426185,0.0012,2906.4,2906.3,0.76419411]
[1764161426583,0.4944,2906.4,2906.3,0.72659411]
[1764161426963,0.0012,2906.4,2906.3,0.72659411]
[1764161427467,0.0012,2906.4,2906.3,0.76419411]
[1764161427669,0.0012,2906.4,2906.3,7.13107058]
[1764161428298,0.0012,2906.4,2906.3,7.16867058]
[1764161428474,0.4944,2906.4,2906.3,0.72659411]
[1764161428675,0.9902,2906.4,2906.3,0.72659411]
[1764161429891,0.4944,2906.4,2906.3,0.72659411]
[1764161430189,0.0012,2906.4,2906.3,1.30704811]
[1764161430394,0.0012,2906.4,2906.3,1.80284811]
[1764161430796,0.0012,2906.4,2906.3,1.76524811]
[1764161435200,0.4944,2906.4,2906.3,0.4968]
[1764161435407,0.9902,2906.4,2906.3,0.001]
[1764161437596,0.9902,2906.4,2906.3,0.9912]
[1764161439208,0.4944,2906.4,2906.3,0.9912]
[1764161439415,0.0012,2906.4,2906.3,0.9912]
[1764161439906,0.0012,2906.4,2906.3,1.434304]
[1764161440094,0.0012,2906.4,2906.3,1.571654]
[1764161442021,0.0012,2906.4,2906.3,1.534054]
[1764161443913,0.0012,2906.4,2906.3,1.571654]
[1764161444115,0.002,2906.7,2906.6,1.23084811]
[1764161444333,0.002,2906.7,2906.6,12.25637326]
[1764161444497,0.002,2906.7,2906.6,8.39117426]
[1764161444699,0.0012,2906.7,2906.6,8.39117426]
[1764161447590,0.0012,2906.7,2906.6,8.52898387]
[1764161449211,0.0012,2906.7,2906.6,8.49138387]
[1764161449644,0.0012,2906.7,2906.6,8.52898387]
[1764161450033,0.0012,2906.7,2906.6,8.49138387]
[1764161450540,0.0012,2906.7,2906.6,8.04827987]
[1764161450541,0.4553,2906.7,2906.6,8.04827987]
[1764161450740,0.0012,2906.7,2906.6,8.08587987]
[1764161451118,0.0012,2906.7,2906.6,8.49138387]
[1764161451317,0.0012,2906.7,2906.6,8.35403387]
[1764161451729,0.0012,2906.7,2906.6,8.45378387]
[1764161451929,0.0012,2906.7,2906.6,8.49138387]
[1764161452526,0.0012,2906.7,2906.6,8.45378387]
[1764161453326,0.949,2906.7,2906.6,8.35403387]
[1764161454554,0.949,2906.7,2906.6,1.22396329]
[1764161454721,0.949,2906.7,2906.6,0.54331361]
[1764161455052,0.949,2906.7,2906.6,0.64306361]
[1764161456557,0.949,2906.7,2906.6,7.04070702]
[1764161456731,0.949,2906.7,2906.6,7.76630113]
[1764161457360,0.0012,2906.7,2906.6,7.66655113]
[1764161457561,0.0012,2906.7,2906.6,7.76630113]
[1764161457867,0.949,2906.7,2906.6,7.26104713]
[1764161458069,0.4553,2906.7,2906.6,7.26104713]
[1764161458864,0.0012,2906.7,2906.6,7.26104713]
[1764161459179,0.4553,2906.7,2906.6,7.26104713]
[1764161459353,0.0012,2906.7,2906.6,7.29864713]
[1764161459548,0.949,2906.7,2906.6,7.26104713]
[1764161460060,0.0012,2906.7,2906.6,7.26104713]
[1764161460693,0.0012,2906.7,2906.6,7.36079713]
[1764161460834,0.4553,2906.7,2906.6,7.36079713]
[1764161461037,0.949,2906.7,2906.6,7.26104713]
[1764161462555,0.4553,2906.7,2906.6,7.26104713]
[1764161463270,0.949,2906.7,2906.6,7.26104713]
[1764161463468,0.4553,2906.7,2906.6,7.26104713]
[1764161463693,0.4553,2906.7,2906.5,0.001]
[1764161463694,0.949,2906.7,2906.5,0.001]
[1764161463877,0.4541,2906.6,2906.5,0.001]
[1764161464058,0.9478,2906.6,2906.5,0.001]
[1764161464257,0.9478,2906.6,2906.5,6.39864341]
[1764161464704,0.9478,2906.6,2906.5,7.12423752]
[1764161466695,0.9478,2906.6,2906.5,7.11788752]
[1764161467079,0.9478,2906.6,2906.3,0.001]
[1764161467400,0.4696,2906.4,2906.3,0.72659411]
[1764161467896,0.9535,2906.4,2906.3,0.001]
[1764161469365,0.9527,2906.4,2906.3,0.001]
[1764161486902,0.002,2906.6,2906.3,0.001]
[1764161487108,0.4668,2906.4,2906.3,0.001]
[1764161487636,0.9495,2906.4,2906.3,0.001]
[1764161488132,0.002,2906.6,2906.3,0.0394]
[1764161488432,0.002,2906.6,2906.4,6.39764341]
[1764161488805,0.002,2906.6,2906.5,0.76399411]
[1764161490309,0.002,2906.6,2906.5,0.95419411]
[1764161492940,0.4688,2906.6,2906.5,0.1902]
[1764161494114,0.468,2906.6,2906.5,0.1902]
[1764161494315,0.9507,2906.6,2906.5,0.1902]
[1764161494511,0.9507,2906.6,2906.3,0.001]
[1764161494711,0.0012,2906.6,2906.3,0.001]
[1764161495051,0.0012,2906.6,2906.5,0.0384]
[1764161495725,0.0012,2906.6,2906.4,0.9507]
[1764161495726,0.468,2906.6,2906.4,0.9507]
[1764161496125,0.4668,2906.5,2906.4,0.9507]
[1764161497339,0.9495,2906.5,2906.4,0.9507]
[1764161497859,0.9495,2906.5,2906.3,0.001]
[1764161498055,0.9495,2906.4,2906.3,0.001]
[1764161498247,0.9495,2906.4,2906.3,0.9505]
[1764161499933,0.9495,2906.4,2906.3,0.001]
[1764161503954,0.0012,2906.6,2906.3,0.001]
[1764161504161,0.4874,2906.6,2906.3,0.001]
[1764161505159,0.4874,2906.6,2906.3,0.72659411]
[1764161505650,0.4874,2906.6,2906.3,0.001]
[1764161506350,0.4778,2906.4,2906.3,0.001]
[1764161507232,0.964,2906.4,2906.3,0.001]
[1764161508045,0.0012,2906.6,2906.3,0.001]
[1764161508256,0.4874,2906.6,2906.3,0.001]
[1764161509265,0.4778,2906.4,2906.3,0.001]
[1764161511364,0.964,2906.4,2906.3,0.001]
[1764161512061,0.0012,2906.6,2906.3,0.001]
[1764161512263,0.4874,2906.6,2906.3,0.001]
[1764161512457,0.0012,2906.6,2906.3,0.001]
[1764161512967,0.4874,2906.6,2906.3,0.4872]
[1764161513164,0.0012,2906.6,2906.3,0.4872]
[1764161515961,0.4778,2906.4,2906.3,0.4872]
[1764161516475,0.964,2906.4,2906.3,0.4872]
[1764161517170,0.4778,2906.4,2906.3,0.4872]
[1764161517760,0.4874,2906.6,2906.3,0.4872]
[1764161518874,0.4866,2906.6,2906.3,0.4872]
[1764161519768,0.4778,2906.4,2906.3,0.001]
[1764161520277,0.964,2906.4,2906.3,0.001]
[1764161522872,1.28660363,2906.4,2906.3,0.001]
[1764161526360,0.964,2906.4,2906.3,0.001]
[1764161530182,0.9602,2906.4,2906.3,0.001]
[1764161542211,1.28237726,2906.4,2906.3,0.001]
[1764161543495,1.28157726,2906.4,2906.3,0.001]
[1764161547429,8.40867036,2906.4,2906.3,0.001]
[1764161549584,8.40906935,2906.4,2906.3,0.001]
[1764161551021,9.55771363,2906.4,2906.3,0.001]
[1764161552417,9.55771363,2906.4,2906.0,0.001]
[1764161552418,1.13109811,2906.3,2906.0,0.001]
[1764161552620,7.5933931,2906.1,2906.0,0.001]
[1764161552825,8.65910963,2906.1,2906.0,0.001]
[1764161553039,9.26876373,2906.1,2906.0,0.001]
[1764161553194,2.86726474,2906.1,2906.0,0.001]
[1764161555511,3.27276874,2906.1,2906.0,0.001]
[1764161561211,2.52962846,2906.1,2906.0,0.001]
[1764161562948,0.0568,2904.8,2904.7,0.86454678]
[1764161563327,0.0568,2904.8,2904.7,0.82634411]
[1764161563641,0.0568,2904.8,2904.7,1.14892036]
[1764161563840,0.0568,2904.8,2904.7,1.04917036]
[1764161564136,0.0568,2904.8,2904.7,1.14892036]
[1764161568322,0.056,2904.8,2904.7,1.14892036]
[1764161569547,0.056,2904.8,2904.7,1.04917036]
[1764161578044,0.058,2904.8,2904.7,1.04917036]
[1764161578647,0.058,2904.8,2904.7,6.7296959]
[1764161578964,0.058,2904.8,2904.7,7.45529001]
[1764161582570,0.058,2904.8,2904.7,7.55504001]
[1764161587338,0.058,2904.8,2904.7,1.04917036]
[1764161587566,0.058,2904.8,2904.7,7.45529001]
[1764161593049,0.0572,2904.8,2904.7,7.45529001]
[1764161594757,0.5223,2904.8,2904.7,7.45529001]
[1764161595281,0.0572,2904.8,2904.7,7.45529001]
[1764161595452,0.0572,2904.8,2904.7,1.04917036]
[1764161595778,0.0572,2904.8,2904.7,7.45529001]
[1764161602161,0.0572,2904.8,2904.7,7.55504001]
[1764161603872,0.0572,2904.8,2904.7,7.45529001]
[1764161607525,0.4543,2905.4,2905.1,0.72559411]
[1764161607526,0.002,2905.4,2905.1,0.72559411]
[1764161607690,0.002,2905.4,2905.3,7.23146376]
[1764161608213,0.002,2905.4,2905.3,7.42506376]
[1764161610213,0.002,2905.4,2905.3,7.32531376]
[1764161614516,0.002,2905.4,2905.3,0.91919411]
[1764161616022,0.4671,2905.4,2905.3,7.32531376]
[1764161616208,0.9194,2905.4,2905.3,0.91919411]
[1764161617408,0.9194,2905.4,2905.1,1.03449524]
[1764161617604,0.4515,2905.3,2905.1,1.03449524]
[1764161617920,0.4651,2905.2,2905.1,1.03449524]
[1764161619721,0.9174,2905.2,2905.1,1.03449524]
[1764161631012,0.9174,2905.2,2905.0,0.001]
[1764161631209,0.949,2905.1,2905.0,0.001]
[1764161631433,0.949,2905.1,2905.0,0.9184]
[1764161631621,0.949,2905.1,2905.0,0.001]
[1764161642459,0.9482,2905.1,2905.0,0.001]
[1764161646406,0.4992,2905.4,2905.0,0.001]
[1764161646613,0.4992,2905.4,2905.0,0.0026]
[1764161646799,0.002,2905.3,2905.0,0.14155791]
[1764161647116,0.002,2905.3,2905.0,0.001]
[1764161647399,0.4972,2905.2,2905.1,0.14155791]
[1764161647789,0.9933,2905.2,2905.1,0.14155791]
[1764161649097,0.9933,2905.2,2905.0,0.001]
[1764161649303,0.9933,2905.1,2905.0,0.001]
[1764161656104,0.002,2905.3,2905.0,0.001]
[1764161656401,0.4849,2905.3,2905.0,0.001]
[1764161656706,0.002,2905.3,2905.0,0.4859]
[1764161657012,0.4849,2905.3,2905.0,0.4859]
[1764161660096,0.4917,2905.1,2905.0,0.4859]
[1764161662818,0.4849,2905.3,2905.0,0.4859]
[1764161663016,0.4917,2905.1,2905.0,0.4859]
[1764161664124,0.9746,2905.1,2905.0,0.4859]
[1764161665315,0.9746,2905.1,2905.0,0.001]
[1764161667019,0.9738,2905.1,2905.0,0.001]
[1764161675452,0.002,2905.3,2905.0,0.0034]
[1764161675751,0.002,2905.3,2905.0,0.14134792]
[1764161676070,0.002,2905.3,2905.2,0.0024]
[1764161676554,0.002,2905.4,2905.3,0.09975]
[1764161676755,0.002,2905.4,2905.3,7.233592]
[1764161677962,0.002,2905.4,2905.3,7.133842]
[1764161681543,0.002,2905.4,2905.3,7.233592]
[1764161683675,0.002,2905.4,2905.3,7.133842]
[1764161685478,0.002,2905.4,2905.3,7.113842]
[1764161686368,0.002,2905.4,2905.3,7.25174997]
[1764161689681,0.002,2905.4,2905.3,0.86350208]
[1764161690100,0.002,2905.4,2905.3,7.27174997]
[1764161690262,0.002,2905.4,2905.3,7.37149997]
[1764161690974,0.002,2905.6,2905.5,0.09975]
[1764161691175,0.002,2905.6,2905.5,0.78844351]
[1764161691567,0.002,2905.6,2905.5,0.92632913]
[1764161691899,0.0012,2905.6,2905.5,0.92632913]
[1764161693892,0.0012,2905.6,2905.5,7.96042113]
[1764161694278,0.0012,2905.6,2905.5,8.06017113]
[1764161696987,0.0012,2905.6,2905.5,7.96042113]
[1764161697482,0.0012,2905.6,2905.5,8.06017113]
[1764161698822,0.0012,2905.6,2905.5,7.95427048]
[1764161700683,0.0012,2905.6,2905.5,8.05402048]
[1764161702316,0.0012,2905.6,2905.5,7.95427048]
[1764161702479,0.4939,2905.6,2905.5,7.95427048]
[1764161703311,0.9888,2905.6,2905.5,1.55217324]
[1764161703683,0.9888,2905.6,2905.5,0.86347973]
[1764161704801,0.4939,2905.6,2905.5,0.86347973]
[1764161705017,0.9888,2905.6,2905.5,0.86347973]
[1764161705718,0.9888,2905.6,2905.5,0.72559411]
[1764161708092,0.0012,2905.6,2905.5,0.72559411]
[1764161711230,0.0012,2905.6,2905.5,1.38019411]
[1764161711725,0.4593,2905.6,2905.5,1.38019411]
[1764161711929,0.9217,2905.6,2905.5,0.72559411]
[1764161715054,0.9217,2905.6,2905.3,0.001]
[1764161715268,0.4894,2905.4,2905.3,0.001]
[1764161715746,0.9547,2905.4,2905.3,0.001]
[1764161716534,0.9539,2905.4,2905.3,0.001]
[1764161722671,0.0012,2905.6,2905.3,6.40429724]
[1764161723239,0.0012,2905.6,2905.5,6.40209724]
[1764161723434,0.0012,2905.6,2905.5,6.40329724]
[1764161724448,0.0012,2905.6,2905.5,6.40209724]
[1764161725068,0.4906,2905.6,2905.5,6.40209724]
[1764161725769,0.9559,2905.6,2905.4,0.4653]
[1764161725973,0.4906,2905.6,2905.4,0.4653]
[1764161726179,0.0012,2905.6,2905.5,6.40209724]
[1764161726370,0.0012,2905.6,2905.5,6.40329724]
[1764161726968,0.0012,2905.6,2905.5,6.86859724]
[1764161727280,0.4906,2905.6,2905.5,6.86739724]
[1764161727492,0.0012,2905.6,2905.5,8.38858922]
[1764161729868,0.0012,2905.6,2905.5,8.38738922]
[1764161730453,0.0012,2905.6,2905.5,8.38858922]
[1764161736996,0.002,2905.7,2905.6,0.82534411]
[1764161737161,0.002,2905.7,2905.6,0.82774411]
[1764161737594,0.002,2905.7,2905.6,0.96561547]
[1764161741206,0.0012,2905.9,2905.7,0.405504]
[1764161741370,0.002,2906.0,2905.9,7.22744135]
[1764161741570,0.002,2906.2,2906.0,0.72559411]
[1764161741808,0.0004,2906.6,2906.5,0.09975]
[1764161742108,0.0004,2906.6,2906.5,7.22864135]
[1764161742401,0.0004,2906.6,2906.5,7.36647756]
[1764161746109,0.0004,2906.6,2906.5,7.36767756]
[1764161746701,0.0004,2906.6,2906.5,0.96318032]
[1764161747017,0.0004,2906.6,2906.5,7.36527756]
[1764161747211,0.0004,2906.6,2906.5,7.36647756]
[1764161749215,0.4857,2906.6,2906.5,7.26552756]
[1764161749418,0.0004,2906.6,2906.5,7.36527756]
[1764161750298,0.0004,2906.6,2906.5,7.36647756]
[1764161756432,0.0004,2906.6,2906.5,7.36527756]
[1764161757331,0.9692,2906.6,2906.5,7.26552756]
[1764161757544,0.9692,2906.6,2906.5,0.13783621]
[1764161757746,0.9692,2906.6,2906.5,0.86343032]
[1764161758048,0.9692,2906.6,2906.5,0.13783621]
[1764161758225,0.9692,2906.6,2906.5,0.86343032]
[1764161760566,0.9692,2906.6,2906.5,0.13783621]
[1764161760720,0.9692,2906.6,2906.5,0.86343032]
[1764161764022,0.9692,2906.6,2906.5,0.13783621]
[1764161764524,0.9692,2906.6,2905.7,0.72559411]
[1764161764750,0.9692,2906.6,2905.5,0.69444787]
[1764161764751,0.4853,2906.3,2906.0,0.72559411]
[1764161765068,0.4853,2906.3,2906.2,8.09345153]
[1764161765270,0.0004,2906.6,2906.2,8.09465153]
[1764161765438,0.0004,2906.6,2906.5,6.39865742]
[1764161766066,0.9517,2906.6,2906.5,6.39865742]
[1764161767136,0.4665,2906.6,2906.5,7.12425153]
[1764161767374,0.0012,2906.7,2906.6,0.72559411]
[1764161767768,0.4677,2906.7,2906.6,0.72559411]
[1764161767959,0.9533,2906.7,2906.6,0.92469411]
[1764161771685,0.9533,2906.7,2906.6,0.1991]
[1764161779185,0.9533,2906.7,2905.9,0.72559411]
[1764161779388,0.4553,2906.6,2906.2,0.72559411]
[1764161779701,0.4553,2906.6,2906.3,0.9533]
[1764161780072,0.4842,2906.4,2906.3,0.9533]
[1764161780461,0.9395,2906.4,2906.3,0.9533]
[1764161782402,0.4842,2906.4,2906.3,0.9533]
[1764161782572,0.0012,2906.7,2906.3,0.9549]
[1764161782775,0.4565,2906.7,2906.5,0.72559411]
[1764161783370,0.4842,2906.6,2906.5,0.72559411]
[1764161783571,0.0012,2906.7,2906.6,0.4565]
[1764161784077,0.4854,2906.7,2906.6,0.4565]
[1764161784283,0.9407,2906.7,2906.6,0.4565]
[1764161784697,0.4854,2906.7,2906.6,0.4565]
[1764161784915,0.9407,2906.7,2906.6,0.4565]
[1764161786073,0.0012,2906.7,2906.6,1.18209411]
[1764161786809,0.4854,2906.7,2906.6,1.18209411]
[1764161787106,0.9407,2906.7,2906.6,1.18209411]
[1764161787744,0.9407,2906.7,2906.6,0.4565]
[1764161790646,0.9399,2906.7,2906.6,0.4565]
[1764161799146,0.0004,2906.7,2906.6,0.0016]
[1764161799870,0.0004,2906.7,2906.6,0.14103336]
[1764161800041,0.0004,2906.7,2906.6,0.24078336]
[1764161801265,0.0004,2906.7,2906.6,0.64628736]
[1764161804147,0.002,2907.0,2906.8,0.10135]
[1764161804353,0.002,2907.0,2906.9,7.12585153]
[1764161804761,0.002,2907.0,2906.9,7.26207634]
[1764161804939,0.4845,2907.0,2906.9,7.26207634]
[1764161805266,0.002,2907.0,2906.9,7.26207634]
[1764161805766,0.4845,2907.0,2906.9,7.26207634]
[1764161806156,0.002,2907.0,2906.9,7.26207634]
[1764161806372,0.002,2907.0,2906.9,7.26367634]
[1764161806881,0.002,2907.0,2906.9,7.26207634]
[1764161807075,0.4845,2907.0,2906.9,7.26207634]
[1764161808456,0.983,2907.0,2906.9,0.86341892]
[1764161809182,0.983,2907.0,2906.3,6.39965742]
[1764161809383,0.4825,2906.7,2906.6,0.983]
[1764161809758,0.981,2906.7,2906.6,0.983]
[1764161810587,0.981,2906.7,2906.4,0.72559411]
[1764161810759,0.4985,2906.7,2906.4,0.72559411]
[1764161810959,0.4825,2906.5,2906.4,1.70659411]
[1764161811492,0.981,2906.5,2906.4,1.70659411]
[1764161812877,0.4985,2906.8,2906.4,1.70659411]
[1764161813069,0.4825,2906.5,2906.4,1.70659411]
[1764161813969,0.981,2906.5,2906.4,0.981]
[1764161814169,0.981,2906.5,2906.3,0.001]
[1764161814397,0.981,2906.4,2906.3,0.001]
[1764161815392,0.9802,2906.4,2906.3,0.001]
[1764161815611,0.1845,2906.9,2906.3,0.0034]
[1764161815772,0.4985,2906.8,2906.3,0.001]
[1764161816775,0.4825,2906.4,2906.3,0.001]
[1764161818086,0.4985,2906.6,2906.3,0.72659411]
[1764161818680,0.4825,2906.4,2906.3,0.72659411]
[1764161819406,0.981,2906.4,2906.3,0.72659411]
[1764161820318,0.981,2906.4,2906.3,0.001]
[1764161829604,0.4825,2906.4,2906.3,0.001]
[1764161830236,0.9446,2906.4,2906.3,0.001]
[1764161833711,0.4825,2906.4,2906.3,0.001]
[1764161833906,0.9446,2906.4,2906.3,0.001]
[1764161840169,0.9438,2906.4,2906.3,0.001]
[1764161845865,0.9458,2906.4,2906.3,0.001]
[1764161846975,1.26831626,2906.4,2906.3,0.001]
[1764161850056,0.9458,2906.4,2906.3,0.001]
[1764161861351,0.4837,2906.4,2906.3,0.001]
[1764161861681,0.9446,2906.4,2906.3,0.001]
[1764161864906,0.29172577,2906.4,2906.3,0.001]
[1764161865110,0.76812577,2906.4,2906.3,0.001]
[1764161869114,0.4996,2906.7,2906.3,0.4772]
[1764161869287,0.32257454,2906.6,2906.3,0.001]
[1764161869487,0.4764,2906.4,2906.3,0.001]
[1764161873430,0.002,2906.7,2906.3,7.37541247]
[1764161873732,0.002,2906.7,2906.6,0.4762]
[1764161883650,0.4784,2906.7,2906.3,0.001]
[1764161883852,0.002,2906.7,2906.6,0.4762]
[1764161884148,0.4784,2906.7,2906.3,0.001]
[1764161884348,0.976,2906.7,2906.3,0.001]
[1764161884652,0.4784,2906.7,2906.3,0.4975]
[1764161884966,0.4764,2906.4,2906.3,0.001]
[1764161885252,0.002,2906.7,2906.3,6.90013512]
[1764161885458,0.4717,2906.7,2906.3,0.001]
[1764161885758,0.4642,2906.4,2906.3,0.001]
[1764161886121,0.4697,2906.6,2906.3,0.001]
[1764161886329,0.4717,2906.7,2906.3,0.5007]
[1764161887559,0.4717,2906.7,2906.3,0.001]
[1764161889653,0.4642,2906.4,2906.3,0.001]
[1764161890359,0.9339,2906.4,2906.3,0.001]
[1764161892883,0.4642,2906.4,2906.3,0.001]
[1764161893962,0.9339,2906.4,2906.3,0.001]
[1764161894678,0.4642,2906.4,2906.3,0.001]
[1764161895083,0.9518,2906.4,2906.3,0.001]
[1764161904772,0.4642,2906.4,2906.3,0.001]
[1764161905502,0.9518,2906.4,2906.3,0.001]
[1764161906201,0.4642,2906.4,2906.3,0.001]
[1764161906402,0.0012,2906.7,2906.3,0.461]
[1764161906774,0.0012,2906.7,2906.4,0.4883]
[1764161906975,0.0012,2906.7,2906.3,0.9493]
[1764161907277,0.4888,2906.7,2906.3,0.461]
[1764161907477,0.4888,2906.7,2906.3,0.001]
[1764161908215,0.32242097,2906.6,2906.3,0.001]
[1764161908388,0.4888,2906.7,2906.3,0.001]
[1764161908713,0.4633,2906.4,2906.3,0.001]
[1764161909111,0.9509,2906.4,2906.3,0.001]
[1764161909410,0.4633,2906.4,2906.3,0.001]
[1764161909714,0.9509,2906.4,2906.3,0.001]
[1764161913818,1.27359359,2906.4,2906.3,0.001]
[1764161914384,1.27279359,2906.4,2906.3,0.001]
[1764161925115,1.27278758,2906.4,2906.3,0.001]
[1764161928622,1.67829158,2906.4,2906.3,0.001]
[1764161929808,1.67821815,2906.4,2906.3,0.001]
[1764161930214,1.68021815,2906.4,2906.3,0.001]
[1764161932546,1.18751815,2906.4,2906.3,0.001]
[1764161932851,1.65591815,2906.4,2906.3,0.001]
[1764161936147,1.18751815,2906.4,2906.3,0.001]
[1764161936350,1.65591815,2906.4,2906.3,0.001]
[1764161939052,1.65511815,2906.4,2906.3,0.001]
[1764161941160,0.78201415,2906.4,2906.3,0.001]
[1764161941362,0.32461415,2906.4,2906.3,0.001]
[1764161942021,1.25041415,2906.4,2906.3,0.001]
[1764161943355,1.9939273,2906.4,2906.3,0.001]
[1764161943526,1.5255273,2906.4,2906.3,0.001]
[1764161944455,1.0681273,2906.4,2906.3,0.4917]
[1764161944659,0.32461415,2906.4,2906.3,0.4917]